fUSD/lending_fUSD_20250602
["ID","MTS","AMOUNT","RATE_DAILY","PERIOD"]
[363769774,1748866259331,-420.0,0.00019452,2]
[363769775,1748866259341,-997.85,0.00019452,2]
[363769776,1748866259351,-420.0,0.00019452,2]
[363769778,1748866259360,-585.37,0.00019452,2]
[363769780,1748866259371,-420.0,0.00019452,2]
[363769782,1748866259381,-420.0,0.00019452,2]
[363769784,1748866259391,-420.0,0.00019452,2]
[363769786,1748866259401,-420.0,0.00019452,2]
[363769788,1748866259411,-420.0,0.00019452,2]
[363769790,1748866259421,-420.0,0.00019452,2]
[363769792,1748866259430,-420.0,0.00019452,2]
[363769794,1748866259440,-420.0,0.00019452,2]
[363769796,1748866259450,-420.0,0.00019452,2]
[363769798,1748866259459,-420.0,0.00019452,2]
[363769800,1748866259469,-15616.11,0.00019452,2]
[363769802,1748866259479,-420.0,0.00019452,2]
[363769804,1748866259489,-420.0,0.00019452,2]
[363769806,1748866259498,-1578.05,0.00019452,2]
[363769808,1748866259508,-430.07307001,0.00019452,2]
[363769810,1748866259517,-420.0,0.00019452,2]
[363769812,1748866259528,-1132.96,0.00019452,2]
[363769814,1748866259538,-679.27,0.00019452,2]
[363769816,1748866259547,-420.0,0.00019452,2]
[363769818,1748866259558,-420.0,0.00019452,2]
[363769820,1748866259571,-420.0,0.00019452,2]
[363769822,1748866259581,-420.0,0.00019452,2]
[363769824,1748866259591,-420.0,0.00019452,2]
[363769826,1748866259601,-420.0,0.00019452,2]
[363769828,1748866259611,-420.0,0.00019452,2]
[363769830,1748866259621,-420.0,0.00019452,2]
[363769832,1748866259631,-420.0,0.00019452,2]
[363769834,1748866259640,-420.0,0.00019452,2]
[363769836,1748866259650,-420.0,0.00019452,2]
[363769838,1748866259660,-420.0,0.00019452,2]
[363769840,1748866259669,-420.0,0.00019452,2]
[363769842,1748866259678,-516.00899273,0.00019452,2]
[363769844,1748866259688,-427.46850895,0.00019452,2]
[363769846,1748866259697,-420.0,0.00019452,2]
[363769848,1748866259707,-420.0,0.00019452,2]
[363769850,1748866259716,-420.0,0.00019452,2]
[363769852,1748866259725,-797.02,0.00019452,2]
[363769854,1748866259735,-420.0,0.00019452,2]
[363769856,1748866259745,-420.0,0.00019452,2]
[363769858,1748866259754,-420.0,0.00019452,2]
[363769860,1748866259764,-420.0,0.00019452,2]
[363769862,1748866259774,-420.0,0.00019452,2]
[363769864,1748866259784,-420.0,0.00019452,2]
[363769879,1748866259921,-481.01,0.00019452,2]
[363769882,1748866259932,-420.0,0.00019452,2]
[363769884,1748866259942,-420.0,0.00019452,2]
[363769885,1748866259951,-420.0,0.00019452,2]
[363769887,1748866259961,-190.01301444,0.00019452,2]
[363769889,1748866259971,-420.0,0.00019452,2]
[363769891,1748866259980,-4428.18,0.00019452,2]
[363769892,1748866259989,-436.06563341,0.00019452,2]
[363769893,1748866259999,-420.0,0.00019452,2]
[363769894,1748866260009,-420.0,0.00019452,2]
[363769895,1748866260019,-420.0,0.00019452,2]
[363769896,1748866260029,-3023.12,0.00019452,2]
[363769897,1748866260039,-505.35384641,0.00019452,2]
[363769898,1748866260051,-456.11289236,0.00019452,2]
[363769899,1748866260061,-420.0,0.00019452,2]
[363769900,1748866260075,-420.0,0.00019452,2]
[363769901,1748866260085,-420.0,0.00019452,2]
[363769902,1748866260097,-420.0,0.00019452,2]
[363769903,1748866260107,-420.0,0.00019452,2]
[363769904,1748866260116,-309.23496101,0.00019452,2]
[363769905,1748866260127,-420.0,0.00019452,2]
[363769906,1748866260137,-420.0,0.00019452,2]
[363769907,1748866260147,-429.73834295,0.00019452,2]
[363769908,1748866260157,-420.0,0.00019452,2]
[363769909,1748866260167,-646.97,0.00019452,2]
[363769910,1748866260177,-420.0,0.00019452,2]
[363769911,1748866260187,-540.20194575,0.00019452,2]
[363769912,1748866260197,-420.0,0.00019452,2]
[363769913,1748866260206,-644.19,0.00019452,2]
[363769914,1748866260217,-1091.75,0.00019452,2]
[363769915,1748866260226,-420.0,0.00019452,2]
[363769916,1748866260236,-426.43142112,0.00019452,2]
[363769917,1748866260246,-888.23,0.00019452,2]
[363769918,1748866260256,-420.0,0.00019452,2]
[363769919,1748866260265,-420.0,0.00019452,2]
[363769920,1748866260275,-444.65,0.00019452,2]
[363769921,1748866260286,-420.0,0.00019452,2]
[363769922,1748866260295,-420.0,0.00019452,2]
[363769923,1748866260307,-420.0,0.00019452,2]
[363769924,1748866260319,-420.0,0.00019452,2]
[363769925,1748866260330,-513.47,0.00019452,2]
[363769926,1748866260340,-420.0,0.00019452,2]
[363769927,1748866260351,-420.0,0.00019452,2]
[363769928,1748866260361,-420.0,0.00019452,2]
[363769929,1748866260371,-420.0,0.00019452,2]
[363769930,1748866260381,-420.0,0.00019452,2]
[363769931,1748866260391,-567.29,0.00019452,2]
[363769932,1748866260401,-420.0,0.00019452,2]
[363769933,1748866260411,-922.08,0.00019452,2]
[363769934,1748866260421,-420.0,0.00019452,2]
[363769935,1748866260431,-420.0,0.00019452,2]
[363769936,1748866260441,-735.73,0.00019452,2]
[363769937,1748866260451,-420.0,0.00019452,2]
[363769938,1748866260462,-420.0,0.00019452,2]
[363769939,1748866260471,-420.0,0.00019452,2]
[363769940,1748866260481,-420.0,0.00019452,2]
[363769941,1748866260491,-420.0,0.00019452,2]
[363769942,1748866260501,-420.0,0.00019452,2]
[363769943,1748866260511,-337.2158993,0.00019452,2]
[363769944,1748866260521,-247.26894328,0.00019452,2]
[363769945,1748866260531,-513.74,0.00019452,2]
[363769946,1748866260541,-420.0,0.00019452,2]
[363769947,1748866260551,-1971.96,0.00019452,2]
[363769948,1748866260562,-420.0,0.00019452,2]
[363769949,1748866260572,-701.56,0.00019452,2]
[363769950,1748866260583,-420.0,0.00019452,2]
[363769951,1748866260593,-1313.43,0.00019452,2]
[363769952,1748866260602,-1461.21,0.00019452,2]
[363769953,1748866260612,-420.0,0.00019452,2]
[363769954,1748866260622,-507.27,0.00019452,2]
[363769955,1748866260632,-420.0,0.00019452,2]
[363769956,1748866260642,-420.0,0.00019452,2]
[363769957,1748866260652,-420.0,0.00019452,2]
[363769958,1748866260662,-1779.74,0.00019452,2]
[363769959,1748866260671,-420.0,0.00019452,2]
[363769960,1748866260681,-420.0,0.00019452,2]
[363769961,1748866260691,-420.0,0.00019452,2]
[363769962,1748866260701,-420.0,0.00019452,2]
[363769963,1748866260711,-420.0,0.00019452,2]
[363769964,1748866260721,-543.12,0.00019452,2]
[363769965,1748866260732,-420.0,0.00019452,2]
[363769966,1748866260742,-420.0,0.00019452,2]
[363769967,1748866260752,-420.0,0.00019452,2]
[363769968,1748866260762,-420.0,0.00019452,2]
[363769969,1748866260772,-1360.86,0.00019452,2]
[363769970,1748866260782,-420.0,0.00019452,2]
[363769971,1748866260792,-420.0,0.00019452,2]
[363769972,1748866260802,-420.0,0.00019452,2]
[363769973,1748866260812,-420.0,0.00019452,2]
[363769974,1748866260821,-1670.1,0.00019452,2]
[363769975,1748866260832,-2670.74,0.00019452,2]
[363769976,1748866260842,-420.0,0.00019452,2]
[363769977,1748866260851,-448.3,0.00019452,2]
[363769978,1748866260861,-550.86,0.00019452,2]
[363769979,1748866260870,-420.0,0.00019452,2]
[363769980,1748866260880,-420.0,0.00019452,2]
[363769981,1748866260889,-420.0,0.00019452,2]
[363769982,1748866260899,-420.0,0.00019452,2]
[363769983,1748866260909,-463.81128577,0.00019452,2]
[363769984,1748866260919,-814.86,0.00019452,2]
[363769985,1748866260928,-420.0,0.00019452,2]
[363769986,1748866260937,-420.0,0.00019452,2]
[363769987,1748866260948,-420.0,0.00019452,2]
[363769988,1748866260958,-420.0,0.00019452,2]
[363769989,1748866260967,-726.71,0.00019452,2]
[363769990,1748866260977,-420.0,0.00019452,2]
[363769992,1748866260987,-420.0,0.00019452,2]
[363769994,1748866260997,-420.0,0.00019452,2]
[363769996,1748866261006,-1615.79,0.00019452,2]
[363769998,1748866261015,-420.0,0.00019452,2]
[363770000,1748866261024,-420.0,0.00019452,2]
[363770002,1748866261034,-420.0,0.00019452,2]
[363770004,1748866261044,-570.67,0.00019452,2]
[363770006,1748866261056,-420.0,0.00019452,2]
[363770008,1748866261067,-1196.54,0.00019452,2]
[363770010,1748866261076,-420.0,0.00019452,2]
[363770012,1748866261087,-469.02,0.00019452,2]
[363770014,1748866261096,-150.0,0.00019467,4]
[363770016,1748866261106,-150.0,0.000195,4]
[363770018,1748866261115,-150.0,0.000195,4]
[363770020,1748866261125,-6264.1693462,0.00019535,2]
[363770022,1748866261137,-150.0,0.00019538,4]
[363770024,1748866261146,-870.61473666,0.00019587,2]
[363770026,1748866261156,-500.0,0.00019588,2]
[363770028,1748866261166,-500.0,0.00019588,2]
[363770030,1748866261176,-1151.0,0.00019589,2]
[363770032,1748866261186,-497.03611016,0.00019589,2]
[363770034,1748866261194,-435.62980148,0.00019589,2]
[363770036,1748866261204,-460.28,0.00019589,2]
[363770038,1748866261214,-152.08,0.00019589,2]
[363770040,1748866261224,-329.62,0.00019589,2]
[363770042,1748866261233,-420.0,0.00019589,2]
[363770044,1748866261243,-420.0,0.00019589,2]
[363770046,1748866261253,-420.0,0.00019589,2]
[363770048,1748866261262,-479.28,0.00019589,2]
[363770050,1748866261272,-422.7,0.00019589,2]
[363770052,1748866261282,-420.0,0.00019589,2]
[363770054,1748866261292,-526.51925465,0.00019589,2]
[363770056,1748866261302,-504.34,0.00019589,2]
[363770058,1748866261312,-486.62,0.00019589,2]
[363770060,1748866261322,-420.0,0.00019589,2]
[363770062,1748866261332,-420.0,0.00019589,2]
[363770064,1748866261342,-512.28,0.00019589,2]
[363770066,1748866261353,-420.0,0.00019589,2]
[363770068,1748866261363,-420.0,0.00019589,2]
[363770070,1748866261373,-451.69,0.00019589,2]
[363770072,1748866261383,-420.0,0.00019589,2]
[363770074,1748866261393,-360.93932469,0.00019589,2]
[363770076,1748866261402,-556.87,0.00019589,2]
[363770078,1748866261412,-420.0,0.00019589,2]
[363770080,1748866261421,-420.0,0.00019589,2]
[363770082,1748866261431,-420.0,0.00019589,2]
[363770083,1748866261440,-420.0,0.00019589,2]
[363770086,1748866261451,-420.0,0.00019589,2]
[363770088,1748866261461,-420.0,0.00019589,2]
[363770089,1748866261470,-456.0799874,0.00019589,2]
[363770091,1748866261480,-420.0,0.00019589,2]
[363770093,1748866261490,-420.0,0.00019589,2]
[363770095,1748866261499,-420.0,0.00019589,2]
[363770097,1748866261509,-420.0,0.00019589,2]
[363770099,1748866261519,-487.90591479,0.00019589,2]
[363770102,1748866261529,-420.0,0.00019589,2]
[363770103,1748866261540,-420.0,0.00019589,2]
[363770106,1748866261551,-420.0,0.00019589,2]
[363770107,1748866261561,-420.0,0.00019589,2]
[363770109,1748866261572,-420.0,0.00019589,2]
[363770111,1748866261583,-420.0,0.00019589,2]
[363770113,1748866261592,-420.0,0.00019589,2]
[363770115,1748866261602,-420.0,0.00019589,2]
[363770117,1748866261612,-420.0,0.00019589,2]
[363770119,1748866261622,-420.0,0.00019589,2]
[363770121,1748866261632,-420.0,0.00019589,2]
[363770122,1748866261643,-182.78074939,0.00019589,2]
[363770123,1748866261653,-515.87126433,0.00019589,2]
[363770124,1748866261663,-420.0,0.00019589,2]
[363770125,1748866261673,-420.0,0.00019589,2]
[363770126,1748866261683,-420.0,0.00019589,2]
[363770127,1748866261693,-420.0,0.00019589,2]
[363770128,1748866261702,-420.0,0.00019589,2]
[363770130,1748866261712,-420.0,0.00019589,2]
[363770132,1748866261722,-468.61953136,0.00019589,2]
[363770134,1748866261733,-420.0,0.00019589,2]
[363770136,1748866261743,-420.0,0.00019589,2]
[363770138,1748866261753,-461.04,0.00019589,2]
[363770140,1748866261763,-420.0,0.00019589,2]
[363770142,1748866261773,-420.0,0.00019589,2]
[363770144,1748866261783,-420.0,0.00019589,2]
[363770146,1748866261793,-420.0,0.00019589,2]
[363770148,1748866261802,-420.0,0.00019589,2]
[363770150,1748866261812,-249.76344531,0.00019589,2]
[363770152,1748866261823,-420.0,0.00019589,2]
[363770154,1748866261834,-420.0,0.00019589,2]
[363770156,1748866261844,-420.0,0.00019589,2]
[363770158,1748866261854,-317.98,0.00019589,2]
[363770160,1748866261863,-420.0,0.00019589,2]
[363770162,1748866261873,-420.0,0.00019589,2]
[363770164,1748866261883,-227.35996627,0.00019589,2]
[363770166,1748866261892,-420.0,0.00019589,2]
[363770180,1748866262020,-420.0,0.00019589,2]
[363770182,1748866262030,-420.0,0.00019589,2]
[363770184,1748866262040,-420.0,0.00019589,2]
[363770186,1748866262051,-420.0,0.00019589,2]
[363770188,1748866262061,-420.0,0.00019589,2]
[363770189,1748866262070,-420.0,0.00019589,2]
[363770191,1748866262081,-420.0,0.00019589,2]
[363770193,1748866262091,-420.0,0.00019589,2]
[363770195,1748866262102,-420.0,0.00019589,2]
[363770197,1748866262111,-420.0,0.00019589,2]
[363770199,1748866262121,-219.16,0.00019589,2]
[363770201,1748866262131,-420.0,0.00019589,2]
[363770203,1748866262141,-420.0,0.00019589,2]
[363770205,1748866262151,-358.58,0.00019589,2]
[363770207,1748866262160,-484.59695893,0.00019589,2]
[363770209,1748866262170,-420.0,0.00019589,2]
[363770211,1748866262180,-420.0,0.00019589,2]
[363770213,1748866262190,-420.0,0.00019589,2]
[363770215,1748866262200,-420.0,0.00019589,2]
[363770217,1748866262210,-420.0,0.00019589,2]
[363770219,1748866262220,-420.0,0.00019589,2]
[363770221,1748866262229,-559.66,0.00019589,2]
[363770223,1748866262240,-420.0,0.00019589,2]
[363770225,1748866262250,-420.0,0.00019589,2]
[363770227,1748866262260,-420.0,0.00019589,2]
[363770228,1748866262271,-524.13,0.00019589,2]
[363770230,1748866262281,-420.0,0.00019589,2]
[363770231,1748866262290,-420.0,0.00019589,2]
[363770233,1748866262300,-420.0,0.00019589,2]
[363770234,1748866262310,-420.0,0.00019589,2]
[363770236,1748866262320,-420.0,0.00019589,2]
[363770237,1748866262329,-420.0,0.00019589,2]
[363770239,1748866262339,-2346.62,0.00019589,2]
[363770241,1748866262351,-420.0,0.00019589,2]
[363770242,1748866262361,-420.0,0.00019589,2]
[363770244,1748866262371,-303.67526051,0.00019589,2]
[363770245,1748866262382,-2394.9,0.00019589,2]
[363770247,1748866262392,-420.0,0.00019589,2]
[363770249,1748866262402,-420.0,0.00019589,2]
[363770250,1748866262412,-1297.39,0.00019589,2]
[363770252,1748866262422,-420.0,0.00019589,2]
[363770253,1748866262432,-420.0,0.00019589,2]
[363770255,1748866262442,-1297.67,0.00019589,2]
[363770256,1748866262452,-420.0,0.00019589,2]
[363770258,1748866262463,-420.0,0.00019589,2]
[363770260,1748866262472,-420.0,0.00019589,2]
[363770261,1748866262481,-420.0,0.00019589,2]
[363770263,1748866262491,-420.0,0.00019589,2]
[363770264,1748866262500,-420.0,0.00019589,2]
[363770266,1748866262509,-420.0,0.00019589,2]
[363770267,1748866262519,-420.0,0.00019589,2]
[363770269,1748866262529,-420.0,0.00019589,2]
[363770271,1748866262539,-420.0,0.00019589,2]
[363770272,1748866262549,-420.0,0.00019589,2]
[363770274,1748866262559,-420.0,0.00019589,2]
[363770276,1748866262570,-420.0,0.00019589,2]
[363770277,1748866262580,-420.0,0.00019589,2]
[363770279,1748866262591,-420.0,0.00019589,2]
[363770281,1748866262602,-1087.76656681,0.00019589,2]
[363770282,1748866262612,-420.0,0.00019589,2]
[363770284,1748866262622,-1991.82,0.00019589,2]
[363770286,1748866262633,-420.0,0.00019589,2]
[363770287,1748866262643,-2432.56884,0.00019589,2]
[363770289,1748866262655,-420.0,0.00019589,2]
[363770290,1748866262665,-420.0,0.00019589,2]
[363770292,1748866262677,-420.0,0.00019589,2]
[363770294,1748866262687,-420.0,0.00019589,2]
[363770295,1748866262697,-420.0,0.00019589,2]
[363770297,1748866262707,-538.21,0.00019589,2]
[363770298,1748866262717,-420.0,0.00019589,2]
[363770300,1748866262727,-589.22,0.00019589,2]
[363770302,1748866262737,-524.97,0.00019589,2]
[363770303,1748866262748,-420.0,0.00019589,2]
[363770305,1748866262758,-437.32,0.00019589,2]
[363770307,1748866262767,-420.0,0.00019589,2]
[363770309,1748866262778,-420.0,0.00019589,2]
[363770311,1748866262788,-420.0,0.00019589,2]
[363770313,1748866262797,-153.99,0.00019589,2]
[363770315,1748866262807,-1101.85,0.00019589,2]
[363770317,1748866262818,-1001.24,0.00019589,2]
[363770319,1748866262828,-681.4,0.00019589,2]
[363770320,1748866262838,-1007.64,0.00019589,2]
[363770322,1748866262847,-1074.37,0.00019589,2]
[363770324,1748866262856,-420.0,0.00019589,2]
[363770326,1748866262866,-2223.6662,0.00019589,2]
[363770328,1748866262875,-183.47,0.00019589,2]
[363770330,1748866262886,-420.0,0.00019589,2]
[363770332,1748866262896,-1222.76,0.00019589,2]
[363770334,1748866262905,-420.0,0.00019589,2]
[363770336,1748866262915,-1702.4,0.00019589,2]
[363770338,1748866262925,-7518.89,0.00019589,2]
[363770340,1748866262934,-420.0,0.00019589,2]
[363770342,1748866262948,-420.0,0.00019589,2]
[363770344,1748866262958,-568.67626722,0.00019589,2]
[363770347,1748866262968,-662.91,0.00019589,2]
[363770349,1748866262978,-420.0,0.00019589,2]
[363770351,1748866262988,-183.02,0.00019589,2]
[363770352,1748866262998,-420.0,0.00019589,2]
[363770353,1748866263007,-512.83,0.00019589,2]
[363770354,1748866263017,-420.0,0.00019589,2]
[363770355,1748866263027,-420.0,0.00019589,2]
[363770356,1748866263037,-420.0,0.00019589,2]
[363770357,1748866263049,-3843.98,0.00019589,2]
[363770358,1748866263062,-420.0,0.00019589,2]
[363770359,1748866263076,-420.0,0.00019589,2]
[363770360,1748866263087,-947.92,0.00019589,2]
[363770361,1748866263097,-915.88,0.00019589,2]
[363770362,1748866263108,-420.0,0.00019589,2]
[363770363,1748866263118,-420.0,0.00019589,2]
[363770364,1748866263129,-997.85,0.00019589,2]
[363770365,1748866263139,-420.0,0.00019589,2]
[363770366,1748866263149,-585.37,0.00019589,2]
[363770367,1748866263161,-432.68463089,0.00019589,2]
[363770368,1748866263171,-420.0,0.00019589,2]
[363770369,1748866263182,-420.0,0.00019589,2]
[363770370,1748866263192,-420.0,0.00019589,2]
[363770371,1748866263203,-420.0,0.00019589,2]
[363770373,1748866263213,-420.0,0.00019589,2]
[363770374,1748866263224,-420.0,0.00019589,2]
[363770376,1748866263234,-420.0,0.00019589,2]
[363770377,1748866263244,-420.0,0.00019589,2]
[363770379,1748866263254,-420.0,0.00019589,2]
[363770381,1748866263264,-15616.11,0.00019589,2]
[363770383,1748866263275,-162.74171062,0.00019589,2]
[363770385,1748866263285,-420.0,0.00019589,2]
[363770387,1748866263295,-1578.05,0.00019589,2]
[363770390,1748866263306,-420.0,0.00019589,2]
[363770391,1748866263315,-1132.96,0.00019589,2]
[363770393,1748866263326,-679.27,0.00019589,2]
[363770395,1748866263336,-420.0,0.00019589,2]
[363770397,1748866263346,-484.83932782,0.00019589,2]
[363770399,1748866263356,-420.0,0.00019589,2]
[363770401,1748866263366,-420.0,0.00019589,2]
[363770403,1748866263376,-420.0,0.00019589,2]
[363770406,1748866263386,-420.0,0.00019589,2]
[363770408,1748866263396,-317.56,0.00019589,2]
[363770410,1748866263406,-420.0,0.00019589,2]
[363770412,1748866263415,-480.02336895,0.00019589,2]
[363770413,1748866263425,-420.0,0.00019589,2]
[363770415,1748866263435,-420.0,0.00019589,2]
[363770417,1748866263445,-420.0,0.00019589,2]
[363770419,1748866263454,-420.0,0.00019589,2]
[363770421,1748866263465,-420.0,0.00019589,2]
[363770423,1748866263475,-797.02,0.00019589,2]
[363770426,1748866263486,-420.0,0.00019589,2]
[363770428,1748866263496,-420.0,0.00019589,2]
[363770430,1748866263507,-420.0,0.00019589,2]
[363770432,1748866263516,-420.0,0.00019589,2]
[363770434,1748866263528,-420.0,0.00019589,2]
[363770436,1748866263538,-420.0,0.00019589,2]
[363770438,1748866263548,-481.01,0.00019589,2]
[363770440,1748866263559,-420.0,0.00019589,2]
[363770442,1748866263569,-420.0,0.00019589,2]
[363770444,1748866263580,-420.0,0.00019589,2]
[363770446,1748866263590,-420.0,0.00019589,2]
[363770448,1748866263599,-4428.18,0.00019589,2]
[363770450,1748866263610,-420.0,0.00019589,2]
[363770452,1748866263620,-420.0,0.00019589,2]
[363770454,1748866263630,-420.0,0.00019589,2]
[363770456,1748866263640,-3023.12,0.00019589,2]
[363770458,1748866263650,-188.84,0.00019589,2]
[363770460,1748866263660,-420.0,0.00019589,2]
[363770462,1748866263670,-420.0,0.00019589,2]
[363770464,1748866263680,-420.0,0.00019589,2]
[363770466,1748866263691,-420.0,0.00019589,2]
[363770468,1748866263701,-538.48,0.00019589,2]
[363770470,1748866263711,-420.0,0.00019589,2]
[363770472,1748866263721,-389.2836694,0.00019589,2]
[363770474,1748866263731,-646.97,0.00019589,2]
[363770476,1748866263741,-420.0,0.00019589,2]
[363770477,1748866263752,-420.0,0.00019589,2]
[363770478,1748866263762,-644.19,0.00019589,2]
[363770479,1748866263773,-1091.75,0.00019589,2]
[363770480,1748866263785,-420.0,0.00019589,2]
[363770481,1748866263795,-888.23,0.00019589,2]
[363770482,1748866263806,-420.0,0.00019589,2]
[363770483,1748866263816,-420.0,0.00019589,2]
[363770484,1748866263827,-444.65,0.00019589,2]
[363770485,1748866263838,-420.0,0.00019589,2]
[363770486,1748866263848,-420.0,0.00019589,2]
[363770487,1748866263859,-420.0,0.00019589,2]
[363770488,1748866263870,-513.47,0.00019589,2]
[363770489,1748866263880,-420.0,0.00019589,2]
[363770495,1748866264029,-420.0,0.00019589,2]
[363770497,1748866264040,-420.0,0.00019589,2]
[363770499,1748866264052,-420.0,0.00019589,2]
[363770501,1748866264063,-420.0,0.00019589,2]
[363770503,1748866264078,-567.29,0.00019589,2]
[363770505,1748866264089,-420.0,0.00019589,2]
[363770507,1748866264099,-922.08,0.00019589,2]
[363770509,1748866264110,-420.0,0.00019589,2]
[363770511,1748866264120,-420.0,0.00019589,2]
[363770513,1748866264131,-735.73,0.00019589,2]
[363770515,1748866264145,-420.0,0.00019589,2]
[363770517,1748866264156,-420.0,0.00019589,2]
[363770519,1748866264166,-420.0,0.00019589,2]
[363770520,1748866264176,-420.0,0.00019589,2]
[363770522,1748866264187,-420.0,0.00019589,2]
[363770525,1748866264199,-473.51,0.00019589,2]
[363770527,1748866264209,-513.74,0.00019589,2]
[363770528,1748866264220,-420.0,0.00019589,2]
[363770530,1748866264230,-1971.96,0.00019589,2]
[363770532,1748866264241,-432.74911813,0.00019589,2]
[363770535,1748866264251,-701.56,0.00019589,2]
[363770537,1748866264264,-420.0,0.00019589,2]
[363770539,1748866264275,-1313.43,0.00019589,2]
[363770541,1748866264285,-1461.21,0.00019589,2]
[363770543,1748866264295,-420.0,0.00019589,2]
[363770545,1748866264305,-420.0,0.00019589,2]
[363770547,1748866264315,-427.63185488,0.00019589,2]
[363770549,1748866264328,-420.0,0.00019589,2]
[363770551,1748866264339,-1779.74,0.00019589,2]
[363770553,1748866264349,-420.0,0.00019589,2]
[363770555,1748866264360,-420.0,0.00019589,2]
[363770557,1748866264371,-420.0,0.00019589,2]
[363770559,1748866264382,-420.0,0.00019589,2]
[363770561,1748866264393,-420.0,0.00019589,2]
[363770563,1748866264403,-543.12,0.00019589,2]
[363770565,1748866264413,-447.66490073,0.00019589,2]
[363770567,1748866264422,-420.0,0.00019589,2]
[363770569,1748866264432,-420.0,0.00019589,2]
[363770571,1748866264442,-420.0,0.00019589,2]
[363770573,1748866264452,-1360.86,0.00019589,2]
[363770575,1748866264463,-420.0,0.00019589,2]
[363770577,1748866264473,-472.44197213,0.00019589,2]
[363770579,1748866264483,-520.02,0.00019589,2]
[363770581,1748866264493,-420.0,0.00019589,2]
[363770583,1748866264503,-1670.1,0.00019589,2]
[363770585,1748866264513,-2670.74,0.00019589,2]
[363770587,1748866264523,-420.0,0.00019589,2]
[363770589,1748866264533,-448.3,0.00019589,2]
[363770591,1748866264542,-420.0,0.00019589,2]
[363770593,1748866264552,-420.0,0.00019589,2]
[363770595,1748866264562,-420.0,0.00019589,2]
[363770597,1748866264572,-814.86,0.00019589,2]
[363770599,1748866264582,-420.0,0.00019589,2]
[363770602,1748866264592,-420.0,0.00019589,2]
[363770603,1748866264602,-424.08413492,0.00019589,2]
[363770605,1748866264613,-726.71,0.00019589,2]
[363770607,1748866264622,-420.0,0.00019589,2]
[363770610,1748866264632,-420.0,0.00019589,2]
[363770611,1748866264642,-420.0,0.00019589,2]
[363770613,1748866264652,-1615.79,0.00019589,2]
[363770615,1748866264662,-420.0,0.00019589,2]
[363770617,1748866264672,-420.0,0.00019589,2]
[363770620,1748866264682,-420.0,0.00019589,2]
[363770622,1748866264692,-570.67,0.00019589,2]
[363770624,1748866264702,-420.0,0.00019589,2]
[363770626,1748866264712,-1196.54,0.00019589,2]
[363770628,1748866264722,-420.0,0.00019589,2]
[363770630,1748866264732,-943.0,0.00019595,2]
[363770632,1748866264741,-1467.0,0.00019595,2]
[363770634,1748866264750,-801.0,0.00019595,2]
[363770636,1748866264760,-500.0,0.00019595,2]
[363770637,1748866264770,-1468.982498,0.00019599,2]